bitfinex/quotes_SOLUSD_20250528
["timestamp","ask_amount","ask_price","bid_price","bid_amount"]
[1748451174280,6.14736928,170.56,170.53,21.47056351]
[1748451174666,6.14715771,170.57,170.53,21.47056351]
[1748451175953,0.28432314,170.55,170.48,27.5525]
[1748451176154,0.28432314,170.55,170.51,21.47056351]
[1748451176360,21.75488665,170.55,170.5,21.47056351]
[1748451178283,0.28432314,170.53,170.5,21.47056351]
[1748451179490,0.28432314,170.51,170.47,57.27056351]
[1748451179670,0.14216157,170.54,170.5,21.47056351]
[1748451179870,0.14216157,170.54,170.52,21.47056351]
[1748451181489,0.14216157,170.54,170.51,21.47056351]
[1748451184181,0.28432314,170.53,170.48,35.8]
[1748451184382,0.28432314,170.53,170.45,9.26]
[1748451184383,21.75488665,170.53,170.45,9.26]
[1748451184581,0.28432314,170.51,170.47,21.47056351]
[1748451185095,0.28432314,170.51,170.48,21.47056351]
[1748451185396,6.1490978,170.51,170.48,21.47056351]
[1748451186295,6.1490978,170.51,170.46,35.8]
[1748451186472,6.1490978,170.51,170.48,21.47056351]
[1748451186673,6.1490978,170.51,170.47,21.47056351]
[1748451188204,0.28432314,170.51,170.49,21.47056351]
[1748451188399,0.28432314,170.51,170.5,21.47056351]
[1748451188694,0.28432314,170.51,170.49,21.47056351]
[1748451189074,0.28432314,170.51,170.5,21.47056351]
[1748451189603,0.28432314,170.51,170.47,5.86604623]
[1748451189604,0.28432314,170.51,170.49,21.47056351]
[1748451190081,0.28432314,170.52,170.49,21.47056351]
[1748451190272,0.28432314,170.52,170.47,5.86604623]
[1748451190472,0.28432314,170.52,170.49,21.47056351]
[1748451191311,0.28432314,170.52,170.47,5.86604623]
[1748451191485,6.14877702,170.52,170.49,21.47056351]
[1748451191692,6.14877702,170.52,170.48,21.47056351]
[1748451192316,6.14877702,170.52,170.47,21.47056351]
[1748451192317,27.61934053,170.52,170.47,21.47056351]
[1748451192786,6.14877702,170.52,170.47,21.47056351]
[1748451193575,0.28432314,170.52,170.49,21.47056351]
[1748451193778,10.8061,170.58,170.51,21.47056351]
[1748451194003,9.26,170.58,170.51,57.27056351]
[1748451194226,15.12247013,170.58,170.55,21.47056351]
[1748451194383,15.12247013,170.58,170.56,23.18364404]
[1748451194578,0.28432314,170.57,170.55,23.18364404]
[1748451195101,0.28432314,170.57,170.51,41.66451231]
[1748451195102,6.1471254,170.57,170.51,41.66451231]
[1748451195306,6.00496383,170.57,170.54,23.18364404]
[1748451195610,0.28432314,170.57,170.56,23.18364404]
[1748451196410,0.14216157,170.57,170.51,41.66451231]
[1748451196588,0.28432314,170.57,170.56,23.18364404]
[1748451198890,6.14704636,170.57,170.55,23.18364404]
[1748451199786,0.28432314,170.57,170.55,23.18364404]
[1748451199989,0.28432314,170.57,170.56,23.18364404]
[1748451203218,6.1470188,170.57,170.56,23.18364404]
[1748451204410,6.1470188,170.57,170.55,23.18364404]
[1748451205610,6.1470188,170.57,170.56,23.18364404]
[1748451206811,6.1470188,170.57,170.55,23.18364404]
[1748451207706,6.1470188,170.57,170.56,23.18364404]
[1748451208905,6.1470188,170.57,170.55,23.18364404]
[1748451215027,0.28432314,170.59,170.56,23.18364404]
[1748451215322,0.28432314,170.59,170.57,23.18364404]
[1748451215897,6.14645877,170.59,170.57,23.18364404]
[1748451217323,6.14645877,170.59,170.56,23.18364404]
[1748451218931,32.42364404,170.6,170.56,23.18364404]
[1748451218932,9.24,170.6,170.58,23.18364404]
[1748451219108,9.24,170.6,170.59,23.18364404]
[1748451219421,0.14216157,170.59,170.58,23.18364404]
[1748451219729,0.28432314,170.59,170.58,23.18364404]
[1748451225942,6.14633146,170.59,170.58,23.18364404]
[1748451226237,0.28432314,170.59,170.58,23.18364404]
[1748451228537,9.24,170.6,170.58,23.18364404]
[1748451228708,9.24,170.6,170.57,5.86259069]
[1748451228709,9.52432314,170.6,170.59,23.18364404]
[1748451230521,0.28432314,170.6,170.59,23.18364404]
[1748451231723,35.24,170.65,170.59,29.04564041]
[1748451231934,9.24,170.65,170.63,23.18364404]
[1748451232115,0.28432314,170.64,170.63,23.18364404]
[1748451232432,0.14216157,170.64,170.63,23.18364404]
[1748451232735,0.28432314,170.64,170.62,23.18364404]
[1748451235735,0.28432314,170.64,170.63,23.18364404]
[1748451236330,0.28432314,170.64,170.62,23.18364404]
[1748451237338,0.28432314,170.64,170.6,35.78]
[1748451237636,6.14476455,170.64,170.62,23.18364404]
[1748451239034,0.28432314,170.64,170.62,23.18364404]
[1748451239234,0.28432314,170.64,170.6,35.78]
[1748451239235,0.28432314,170.64,170.63,23.18364404]
[1748451239947,0.28432314,170.64,170.63,14.82481484]
[1748451240441,6.14461381,170.64,170.61,14.82481484]
[1748451240749,6.14461381,170.64,170.62,14.82481484]
[1748451241244,0.28432314,170.64,170.62,14.82481484]
[1748451242238,0.28432314,170.64,170.63,14.82481484]
[1748451242747,0.14216157,170.64,170.63,14.82481484]
[1748451243250,0.28432314,170.64,170.63,14.82481484]
[1748451246454,0.28432314,170.64,170.61,5.86118821]
[1748451246630,0.28432314,170.64,170.63,14.82481484]
[1748451246828,5.85857402,170.69,170.63,14.82481484]
[1748451247044,5.85857402,170.69,170.66,14.82481484]
[1748451247436,0.28432314,170.68,170.66,14.82481484]
[1748451247659,0.28432314,170.68,170.67,14.82481484]
[1748451248153,0.28432314,170.68,170.67,23.15355977]
[1748451248447,6.14324041,170.68,170.67,23.15355977]
[1748451249344,6.14324041,170.68,170.66,23.15355977]
[1748451249731,6.14324041,170.68,170.67,23.15355977]
[1748451250139,6.14324041,170.68,170.66,23.15355977]
[1748451253735,5.85864031,170.69,170.66,23.15355977]
[1748451253947,0.28432314,170.68,170.66,23.15355977]
[1748451256542,0.28432314,170.67,170.66,23.15355977]
[1748451256855,0.28432314,170.67,170.65,23.15355977]
[1748451258647,0.28432314,170.66,170.65,23.15355977]
[1748451259532,0.28432314,170.66,170.64,35.78]
[1748451263256,0.28432314,170.66,170.64,23.15355977]
[1748451263644,0.28432314,170.68,170.65,23.15355977]
[1748451263844,9.24,170.7,170.67,23.15355977]
[1748451264148,9.24,170.7,170.64,23.15355977]
[1748451264149,9.24,170.7,170.69,23.15355977]
[1748451264354,15.24039238,170.7,170.69,23.15355977]
[1748451264552,0.14216157,170.69,170.68,23.15355977]
[1748451266659,0.14216157,170.69,170.66,35.76]
[1748451266957,0.14216157,170.69,170.67,23.15355977]
[1748451269976,0.14216157,170.69,170.67,14.81730916]
[1748451270643,6.14294725,170.69,170.67,14.81730916]
[1748451272874,6.14294725,170.69,170.66,14.81730916]
[1748451276399,6.14294725,170.69,170.65,35.76]
[1748451276691,20.96025641,170.69,170.65,14.81730916]
[1748451276895,6.14294725,170.69,170.65,14.81730916]
[1748451278300,6.14294725,170.69,170.64,50.57730916]
[1748451280108,6.14294725,170.69,170.64,35.76]
[1748451280289,6.14294725,170.69,170.65,14.81730916]
[1748451284197,6.14294725,170.69,170.66,14.81730916]
[1748451284779,6.14294725,170.69,170.64,35.76]
[1748451284978,6.14294725,170.69,170.65,14.81730916]
[1748451290912,9.24,170.72,170.68,14.81730916]
[1748451291229,9.24,170.72,170.7,14.81730916]
[1748451292100,0.28432314,170.71,170.7,14.81730916]
[1748451292392,0.14216157,170.71,170.69,14.81730916]
[1748451292930,0.28432314,170.71,170.69,14.81730916]
[1748451298511,31.85675155,170.75,170.7,14.81730916]
[1748451298714,5.85675155,170.75,170.72,14.81730916]
[1748451298944,5.85675155,170.75,170.71,14.81730916]
[1748451299157,0.28432314,170.74,170.7,14.81730916]
[1748451300421,0.28432314,170.72,170.7,14.81730916]
[1748451300641,0.28432314,170.72,170.69,50.55730916]
[1748451301934,15.1016323,170.7,170.65,35.74]
[1748451302114,14.81730916,170.69,170.64,14.81730916]
[1748451302318,0.28432314,170.66,170.62,9.22]
[1748451302518,0.28432314,170.66,170.63,50.55730916]
[1748451302750,14.81730916,170.69,170.64,14.81730916]
[1748451304021,23.1604923,170.69,170.65,23.1604923]
[1748451304231,29.01872311,170.7,170.65,23.1604923]
[1748451304535,23.1604923,170.69,170.65,23.1604923]
[1748451304742,0.28432314,170.68,170.65,23.1604923]
[1748451305518,6.14329265,170.68,170.64,23.1604923]
[1748451306036,6.14329265,170.68,170.63,35.74]
[1748451306342,29.30378495,170.68,170.64,23.1604923]
[1748451308126,6.14329265,170.68,170.64,23.1604923]
[1748451310543,5.85651537,170.75,170.67,23.1604923]
[1748451310724,9.22,170.76,170.73,23.1604923]
[1748451311046,0.14216157,170.75,170.74,23.1604923]
[1748451311430,9.22,170.76,170.74,23.1604923]
[1748451313150,5.85519572,170.79,170.74,23.1604923]
[1748451313447,5.85519572,170.79,170.72,35.74]
[1748451313752,0.14216157,170.78,170.75,23.1604923]
[1748451313951,5.85582947,170.77,170.75,23.1604923]
[1748451314251,0.28432314,170.76,170.68,5.85883241]
[1748451314438,23.44481544,170.76,170.71,23.1604923]
[1748451314629,0.28432314,170.74,170.71,23.1604923]
[1748451316134,6.14144071,170.74,170.71,23.1604923]
[1748451316856,0.14216157,170.74,170.73,23.1604923]
[1748451317153,0.28432314,170.76,170.73,23.1604923]
[1748451317931,6.14061242,170.76,170.73,23.1604923]
[1748451322157,6.14061242,170.76,170.72,23.1604923]
[1748451325653,23.1604923,170.75,170.7,23.1604923]
[1748451325854,23.30265387,170.73,170.67,174.4]
[1748451326150,0.14216157,170.72,170.69,23.1604923]
[1748451326458,5.85548659,170.78,170.71,23.1604923]
[1748451326661,5.8551171,170.8,170.76,23.1604923]
[1748451326960,15.07420781,170.82,170.79,23.1604923]
[1748451327174,0.28432314,170.81,170.78,23.1604923]
[1748451329163,6.13896657,170.81,170.77,23.1604923]
[1748451330296,0.14216157,170.81,170.78,23.1604923]
[1748451330952,0.28432314,170.81,170.77,23.1604923]
[1748451331148,23.44481544,170.81,170.76,35.72]
[1748451331362,23.44481544,170.81,170.77,23.1604923]
[1748451331652,0.28432314,170.81,170.77,23.1604923]
[1748451332267,0.14216157,170.79,170.77,23.1604923]
[1748451333080,0.14216157,170.79,170.78,23.1604923]
[1748451333261,0.14216157,170.81,170.78,23.1604923]
[1748451333456,9.22,170.82,170.79,23.1604923]
[1748451333969,9.22,170.82,170.8,23.1604923]
[1748451334364,9.22,170.82,170.8,58.8804923]
[1748451334575,34.494957,170.85,170.8,58.8804923]
[1748451334576,5.48111716,170.85,170.81,23.1604923]
[1748451334782,5.48111716,170.85,170.82,23.1604923]
[1748451335281,5.48111716,170.85,170.81,23.1604923]
[1748451335282,0.14216157,170.84,170.81,23.1604923]
[1748451336357,5.85377275,170.83,170.81,23.1604923]
[1748451340664,5.85377275,170.83,170.8,58.8804923]
[1748451342491,0.14216157,170.82,170.79,35.7]
[1748451342794,23.30265387,170.82,170.79,35.7]
[1748451342962,0.14216157,170.82,170.8,23.1604923]
[1748451343158,5.48111716,170.85,170.81,64.97063346]
[1748451343369,12.5,170.9,170.85,18.64964886]
[1748451343660,12.5,170.9,170.89,49.79624116]
[1748451343879,12.5,170.9,170.89,31.1465923]
[1748451344077,12.5,170.9,170.84,7.9861]
[1748451344287,23.1604923,170.89,170.84,65.2201923]
[1748451344462,0.14216157,170.88,170.84,58.8604923]
[1748451345461,5.99434445,170.88,170.84,58.8604923]
[1748451347573,29.15483675,170.88,170.84,58.8604923]
[1748451349084,5.99434445,170.88,170.85,23.1604923]
[1748451349576,5.99434445,170.88,170.84,58.8604923]
[1748451353300,5.99434445,170.88,170.84,23.1604923]
[1748451353498,5.99434445,170.88,170.84,58.8604923]
[1748451354672,23.1604923,170.88,170.84,35.7]
[1748451355075,23.30265387,170.87,170.81,148.4]
[1748451355300,23.1604923,170.86,170.82,35.7]
[1748451355601,29.0135798,170.85,170.81,35.7]
[1748451357182,29.0135798,170.85,170.81,58.8604923]
[1748451357382,29.0135798,170.85,170.81,23.1604923]
[1748451361710,29.0135798,170.85,170.8,58.8604923]
[1748451362208,23.1604923,170.84,170.8,58.8604923]
[1748451362380,29.0135798,170.85,170.8,58.8604923]
[1748451363602,23.44481544,170.84,170.79,23.1604923]
[1748451363802,23.44481544,170.84,170.8,23.1604923]
[1748451365414,0.28432314,170.84,170.8,23.1604923]
[1748451365719,0.28432314,170.84,170.78,5.85525169]
[1748451365720,23.1604923,170.82,170.78,35.7]
[1748451366787,29.01477699,170.82,170.78,58.8604923]
[1748451368794,5.85428469,170.82,170.78,35.7]
[1748451368993,29.01477699,170.82,170.77,58.8604923]
[1748451369507,23.44481544,170.81,170.77,35.7]
[1748451369708,23.1604923,170.8,170.74,35.22]
[1748451369883,23.1604923,170.79,170.75,58.8604923]
[1748451370084,23.1604923,170.8,170.76,23.1604923]
[1748451370289,23.44481544,170.81,170.76,23.1604923]
[1748451370993,29.2995093,170.81,170.76,23.1604923]
[1748451372507,23.1604923,170.8,170.76,23.1604923]
[1748451373810,23.1604923,170.8,170.76,58.8604923]
[1748451374584,29.01541117,170.8,170.76,23.1604923]
[1748451375718,0.28432314,170.79,170.76,23.1604923]
[1748451376223,6.139495,170.79,170.76,23.1604923]
[1748451379425,9.22,170.82,170.76,23.1604923]
[1748451379595,9.22,170.82,170.77,23.1604923]
[1748451379596,0.28432314,170.81,170.77,23.1604923]
[1748451379902,9.22,170.82,170.8,23.1604923]
[1748451380094,9.22,170.82,170.79,23.1604923]
[1748451380295,38.23462342,170.82,170.77,23.1604923]
[1748451382107,23.44481544,170.81,170.76,23.1604923]
[1748451382920,23.1604923,170.8,170.76,23.1604923]
[1748451384218,5.85514374,170.79,170.75,58.8604923]
[1748451384605,43.65349539,170.79,170.75,35.7]
[1748451385004,23.44481544,170.78,170.73,23.1604923]
[1748451385204,23.1604923,170.77,170.72,30.51835634]
[1748451385399,0.28432314,170.78,170.72,30.51835634]
[1748451385400,23.1604923,170.76,170.72,66.21835634]
[1748451385703,23.1604923,170.76,170.72,43.05786404]
[1748451386117,23.1604923,170.76,170.72,7.35786404]
[1748451386327,5.85651537,170.75,170.72,7.35786404]
[1748451389618,5.85651537,170.75,170.72,43.05786404]
[1748451389800,5.85651537,170.75,170.72,66.21835634]
[1748451391123,5.85651537,170.75,170.72,43.05786404]
[1748451398411,43.6582961,170.75,170.72,43.05786404]
[1748451398616,23.1604923,170.74,170.72,43.05786404]
[1748451398916,23.1604923,170.73,170.72,7.35786404]
[1748451399708,29.01769372,170.73,170.72,7.35786404]
[1748451400915,43.66069729,170.73,170.7,35.72]
[1748451401419,23.1604923,170.72,170.67,23.1604923]
[1748451401611,23.1604923,170.72,170.68,35.7]
[1748451402506,5.85788764,170.71,170.68,35.7]
[1748451402726,5.85788764,170.71,170.68,58.8604923]
[1748451403130,5.85788764,170.71,170.67,23.1604923]
[1748451403531,5.85788764,170.71,170.68,35.72]
[1748451404925,5.85788764,170.71,170.69,35.72]
[1748451408242,5.85788764,170.71,170.69,58.8804923]
[1748451410036,5.85754451,170.72,170.69,58.8804923]
[1748451411341,5.85754451,170.72,170.69,35.72]
[1748451414052,5.85754451,170.72,170.69,58.8804923]
[1748451414248,5.85651537,170.75,170.71,23.1604923]
[1748451414550,9.22,170.76,170.73,23.1604923]
[1748451414551,15.07628478,170.76,170.73,23.1604923]
[1748451414850,9.22,170.76,170.74,23.1604923]
[1748451415028,15.07621485,170.76,170.74,23.1604923]
[1748451415226,5.85594174,170.77,170.75,35.72]
[1748451415751,5.85561371,170.78,170.75,58.8804923]
[1748451415947,5.85561371,170.78,170.75,35.72]
[1748451416131,5.85523731,170.79,170.75,58.8804923]
[1748451417749,29.01572961,170.79,170.75,35.72]
[1748451418741,5.85523731,170.79,170.75,35.72]
[1748451418934,29.01572961,170.79,170.75,35.72]
[1748451421855,5.85523731,170.79,170.75,35.72]
[1748451422044,29.01572961,170.79,170.75,35.72]
[1748451427057,23.1604923,170.78,170.75,35.72]
[1748451427563,23.1604923,170.78,170.74,35.7]
[1748451427765,23.1604923,170.77,170.74,35.7]
[1748451428645,5.8561724,170.76,170.74,35.7]
[1748451429935,5.85595765,170.77,170.74,35.7]
[1748451430338,5.85535497,170.79,170.74,58.8604923]
[1748451430561,5.85535497,170.79,170.75,23.1604923]
[1748451431256,29.01584727,170.79,170.74,58.8604923]
[1748451434258,5.85535497,170.79,170.74,35.7]
[1748451434569,6.13917815,170.8,170.76,23.1604923]
[1748451435150,29.29967045,170.8,170.75,23.1604923]
[1748451436151,23.1604923,170.79,170.75,23.1604923]
[1748451437546,29.01592183,170.79,170.75,23.1604923]
[1748451438274,5.85542953,170.79,170.76,23.1604923]
[1748451442559,5.85542953,170.79,170.75,23.1604923]
[1748451443056,23.1604923,170.78,170.74,35.7]
[1748451443374,23.1604923,170.77,170.73,23.1604923]
[1748451443575,23.1604923,170.77,170.74,35.7]
[1748451444472,29.01640963,170.77,170.74,35.7]
[1748451445857,5.85591733,170.77,170.74,58.8604923]
[1748451446260,29.30043561,170.78,170.74,58.8604923]
[1748451450977,5.85411544,170.82,170.77,23.1604923]
[1748451451175,15.07386428,170.83,170.79,23.1604923]
[1748451452364,9.22,170.83,170.79,23.1604923]
[1748451452570,9.22,170.83,170.8,23.1604923]
[1748451453862,29.01368766,170.85,170.8,23.1604923]
[1748451454277,5.85319536,170.85,170.8,23.1604923]
[1748451454476,29.01368766,170.85,170.8,23.1604923]
[1748451455078,23.1604923,170.84,170.8,23.1604923]
[1748451455259,23.1604923,170.84,170.79,41.81014116]
[1748451456378,29.01420121,170.84,170.79,41.81014116]
[1748451456778,29.01420121,170.84,170.79,47.66523127]
[1748451456978,29.01369863,170.85,170.8,23.1604923]
[1748451458291,0.28432314,170.86,170.8,23.1604923]
[1748451458464,23.1604923,170.84,170.79,47.66523127]
[1748451458985,23.1604923,170.84,170.79,41.81014116]
[1748451461986,23.1604923,170.82,170.78,35.7]
[1748451462688,23.1604923,170.83,170.78,58.8604923]
[1748451462890,29.01451531,170.83,170.78,58.8604923]
[1748451465492,23.1604923,170.82,170.78,35.7]
[1748451465784,29.01451531,170.83,170.78,58.8604923]
[1748451465966,20.64901962,170.83,170.78,50.49499661]
[1748451468388,14.79499661,170.83,170.78,50.49499661]
[1748451468785,14.79499661,170.83,170.78,56.35041036]
[1748451470395,0.28432314,170.84,170.8,14.79499661]
[1748451470886,15.07931975,170.84,170.79,14.79499661]
[1748451471794,43.1879,170.88,170.81,14.79499661]
[1748451471990,14.79499661,170.86,170.82,14.79499661]
[1748451472571,14.79499661,170.86,170.81,14.79499661]
[1748451472884,14.79499661,170.86,170.82,5.85411544]
[1748451473915,0.28432314,170.87,170.82,5.85411544]
[1748451474077,14.79499661,170.86,170.82,5.85411544]
[1748451474907,0.28432314,170.87,170.82,5.85411544]
[1748451475107,14.79499661,170.86,170.82,5.85411544]
[1748451478891,15.07931975,170.87,170.82,20.64911205]
[1748451479491,23.99499661,170.88,170.83,14.79499661]
[1748451479693,9.2,170.88,170.84,14.79499661]
[1748451481520,9.2,170.88,170.85,14.79499661]
[1748451481713,0.14216157,170.89,170.85,14.79499661]
[1748451481714,0.28432314,170.89,170.85,14.79499661]
[1748451482504,20.93106285,170.89,170.85,14.79499661]
[1748451482803,6.13606624,170.89,170.84,14.79499661]
[1748451482980,20.93106285,170.89,170.84,14.79499661]
[1748451484619,20.93106285,170.89,170.85,14.79499661]
[1748451484785,15.07931975,170.89,170.85,14.79499661]
[1748451485104,20.9311519,170.89,170.85,14.79499661]
[1748451485519,20.9311519,170.89,170.84,14.79499661]
[1748451486005,6.13615529,170.89,170.84,14.79499661]
[1748451486308,20.9311519,170.89,170.84,14.79499661]
[1748451487400,15.07931975,170.89,170.84,20.64837126]
[1748451487607,20.93110697,170.89,170.84,20.64837126]
[1748451487927,6.13611036,170.89,170.85,14.79499661]
[1748451488504,20.64643137,170.9,170.85,14.79499661]
[1748451489009,20.64643137,170.9,170.86,14.79499661]
[1748451489602,20.64643137,170.9,170.85,14.79499661]
[1748451490502,0.28432314,170.91,170.87,14.79499661]
[1748451490707,6.13558096,170.91,170.87,14.79499661]
[1748451490912,6.13558096,170.91,170.83,55.95894886]
[1748451490913,20.93057757,170.91,170.86,14.79499661]
[1748451491881,14.79499661,170.9,170.85,14.79499661]
[1748451492180,14.79499661,170.86,170.78,5.85535902]
[1748451492375,0.28432314,170.85,170.77,24.50524273]
[1748451492591,14.79499661,170.82,170.78,35.66]
[1748451492793,5.85343011,170.84,170.78,50.45499661]
[1748451492983,14.79499661,170.86,170.82,14.79499661]
[1748451493602,14.79499661,170.86,170.81,14.79499661]
[1748451494105,20.64803612,170.86,170.81,14.79499661]
[1748451494487,20.64803612,170.86,170.81,20.64940879]
[1748451494682,14.79499661,170.86,170.81,20.64940879]
[1748451495905,23.10847579,170.86,170.81,28.96288797]
[1748451496104,9.2,170.87,170.83,23.10847579]
[1748451496695,15.05242819,170.87,170.83,23.10847579]
[1748451497299,38.16090398,170.87,170.83,23.10847579]
[1748451498010,32.30847579,170.87,170.83,23.10847579]
[1748451498205,23.10847579,170.87,170.83,23.10847579]
[1748451498712,0.28432314,170.88,170.85,23.10847579]
[1748451498906,0.28432314,170.88,170.84,23.10847579]
[1748451499916,29.24494244,170.88,170.83,58.76847579]
[1748451500726,16.63764676,170.9,170.85,23.10847579]
[1748451501014,32.30847579,170.9,170.85,23.10847579]
[1748451501219,23.10847579,170.89,170.84,23.10847579]
[1748451501427,23.10847579,170.88,170.84,18.64964886]
[1748451502025,23.10847579,170.88,170.83,35.66]
[1748451502327,23.10847579,170.87,170.83,35.66]
[1748451503191,28.96083534,170.88,170.83,58.76847579]
[1748451503618,5.85235955,170.88,170.83,58.76847579]
[1748451503913,28.96083534,170.88,170.83,58.76847579]
[1748451507628,28.96083534,170.88,170.83,23.10847579]
[1748451508301,23.10847579,170.87,170.83,23.10847579]
[1748451509125,23.10847579,170.87,170.82,58.76847579]
[1748451510200,23.10847579,170.87,170.82,64.62259001]
[1748451510914,23.10847579,170.87,170.83,23.10847579]
[1748451511925,23.39279893,170.86,170.78,5.85548659]
[1748451512131,23.10847579,170.84,170.79,77.41812465]
[1748451512333,23.10847579,170.84,170.79,83.27313307]
[1748451512532,23.10847579,170.84,170.8,35.66]
[1748451512705,28.96164429,170.85,170.8,35.66]
[1748451513026,28.96164429,170.85,170.8,58.76847579]
[1748451513926,23.10847579,170.84,170.79,41.75812465]
[1748451514223,23.10847579,170.83,170.79,54.30964886]
[1748451514419,28.96227905,170.83,170.79,54.30964886]
[1748451514609,0.28432314,170.87,170.8,23.10847579]
[1748451514797,23.10847579,170.84,170.8,23.10847579]
[1748451515421,23.10847579,170.83,170.79,54.30964886]
[1748451515722,23.10847579,170.83,170.79,35.66]
[1748451516708,28.96205318,170.84,170.79,64.62358692]
[1748451517111,28.96205318,170.84,170.79,23.10847579]
[1748451517316,23.10847579,170.84,170.8,23.10847579]
[1748451517951,14.79199194,170.84,170.8,14.79199194]
[1748451519230,20.6455043,170.84,170.8,14.79199194]
[1748451519613,14.79199194,170.84,170.8,14.79199194]
[1748451521328,14.79199194,170.84,170.79,39.29668414]
[1748451523227,20.64543459,170.84,170.79,39.29668414]
[1748451525223,6.13754641,170.85,170.79,39.29668414]
[1748451525463,15.07631508,170.85,170.8,14.79199194]
[1748451525807,5.85288957,170.86,170.82,14.79199194]
[1748451526040,20.64488151,170.86,170.82,14.79199194]
[1748451526219,14.79199194,170.86,170.82,14.79199194]
[1748451526533,14.79199194,170.86,170.81,33.4416408]
[1748451527039,14.79199194,170.86,170.81,39.29586388]
[1748451528941,20.64477114,170.86,170.81,39.29586388]
[1748451529238,15.05252967,170.87,170.81,39.29586388]
[1748451529445,14.79199194,170.86,170.81,39.29586388]
[1748451529644,14.79199194,170.86,170.81,24.50387194]
[1748451529829,15.05252967,170.87,170.81,39.29586388]
[1748451530017,14.79199194,170.86,170.81,39.29586388]
[1748451531343,20.64475711,170.86,170.81,39.29586388]
[1748451531546,20.64475711,170.86,170.81,33.4416408]
[1748451534048,14.79199194,170.85,170.78,189.91538493]
[1748451534240,14.79199194,170.84,170.79,69.1016408]
[1748451534435,5.85276517,170.86,170.79,54.30964886]
[1748451534639,20.64475711,170.86,170.81,14.79199194]
[1748451534949,5.85276517,170.86,170.81,14.79199194]
[1748451535248,20.64475711,170.86,170.81,14.79199194]
[1748451535746,5.85276517,170.86,170.81,14.79199194]
[1748451536761,5.85276517,170.86,170.81,20.64637983]
[1748451537362,1.85152314,170.88,170.83,14.79199194]
[1748451537363,6.13651354,170.88,170.83,14.79199194]
[1748451537664,29.84384735,170.89,170.83,14.79199194]
[1748451537836,29.84384735,170.89,170.82,18.64964886]
[1748451537837,14.79199194,170.88,170.82,18.64964886]
[1748451538038,14.79199194,170.88,170.83,14.79199194]
[1748451538337,20.64437554,170.88,170.83,14.79199194]
[1748451538858,14.79199194,170.85,170.8,50.45199194]
[1748451539746,9.2,170.89,170.82,14.79199194]
[1748451539953,0.28432314,170.88,170.83,23.10138072]
[1748451540141,23.38570386,170.88,170.82,23.10138072]
[1748451540472,23.10138072,170.87,170.82,23.10138072]
[1748451540950,28.95381465,170.87,170.82,23.10138072]
[1748451541338,5.85243393,170.87,170.82,23.10138072]
[1748451541933,5.85243393,170.87,170.82,28.95546852]
[1748451543937,28.95381465,170.87,170.82,28.95546852]
[1748451544652,5.85243393,170.87,170.83,23.10138072]
[1748451545561,28.95381465,170.87,170.82,28.95546852]
[1748451552169,5.85243393,170.87,170.83,23.10138072]
[1748451552463,28.95381465,170.87,170.83,23.10138072]
[1748451557358,9.18,170.89,170.84,23.10138072]
[1748451557539,32.28138072,170.89,170.84,23.10138072]
[1748451558864,23.10138072,170.88,170.84,23.10138072]
[1748451559267,9.18,170.89,170.85,18.64964886]
[1748451559456,9.18,170.89,170.87,23.10138072]
[1748451559642,9.18,170.89,170.86,23.10138072]
[1748451560164,9.18,170.89,170.86,14.77999473]
[1748451560961,9.18,170.89,170.86,20.63267224]
[1748451561364,9.18,170.89,170.86,5.85267751]
[1748451561551,9.18,170.89,170.86,14.77999473]
[1748451561952,14.77999473,170.9,170.86,14.77999473]
[1748451563363,20.6314305,170.9,170.85,24.50262155]
[1748451563669,20.6314305,170.9,170.86,14.77999473]
[1748451565073,20.63114283,170.91,170.86,14.77999473]
[1748451566272,5.85093566,170.92,170.87,18.64964886]
[1748451566457,14.77999473,170.91,170.87,18.64964886]
[1748451566972,5.85093566,170.92,170.87,33.42964359]
[1748451567155,20.63093039,170.92,170.87,33.42964359]
[1748451567352,14.77999473,170.91,170.85,24.50272344]
[1748451567569,14.77999473,170.91,170.87,18.64964886]
[1748451568149,5.85093566,170.92,170.87,18.64964886]
[1748451568468,20.63114176,170.91,170.87,18.64964886]
[1748451569374,14.77999473,170.91,170.87,18.64964886]
[1748451569761,20.63113193,170.91,170.87,18.64964886]
[1748451571875,14.77999473,170.89,170.84,184.04]
[1748451572070,14.77999473,170.88,170.85,18.64964886]
[1748451572764,14.77999473,170.89,170.85,54.28964886]
[1748451574371,5.85076271,170.92,170.85,54.28964886]
[1748451574578,9.18,170.93,170.88,14.77999473]
[1748451574764,9.18,170.93,170.89,14.77999473]
[1748451575675,9.18,170.93,170.9,14.77999473]
[1748451576172,9.18,170.93,170.9,18.64964886]
[1748451577275,9.18,170.93,170.9,33.42964359]
[1748451578387,9.18,170.93,170.9,39.28071348]
[1748451579286,9.18,170.93,170.91,14.77999473]
[1748451579879,9.18,170.93,170.91,20.63069852]
[1748451580264,9.18,170.93,170.91,5.85070379]